bitfinex/quotes_SOLUSD_20241118
["timestamp","ask_amount","ask_price","bid_price","bid_amount"]
[1731949923634,23.776884,240.79,240.71,12.40250343]
[1731949923938,23.776884,240.71,240.64,12.40250343]
[1731949924645,23.776884,240.71,240.58,12.2343]
[1731949924646,0.25098,240.7,240.63,12.40250343]
[1731949924947,23.776884,240.68,240.61,12.40250343]
[1731949925244,23.776884,240.68,240.58,12.2343]
[1731949925245,23.776884,240.68,240.62,12.40250343]
[1731949925447,23.776884,240.69,240.62,12.40250343]
[1731949926223,23.776884,240.69,240.63,12.40250343]
[1731949926650,23.776884,240.69,240.62,12.40250343]
[1731949926941,36.17938743,240.69,240.61,12.40250343]
[1731949927953,36.17938743,240.69,240.62,12.40250343]
[1731949928160,12.40250343,240.66,240.59,12.40250343]
[1731949928345,24.027864,240.65,240.59,12.40250343]
[1731949928741,24.027864,240.65,240.6,12.40250343]
[1731949928948,12.65348343,240.66,240.6,12.40250343]
[1731949929141,23.776884,240.65,240.61,12.40250343]
[1731949929560,0.25098,240.66,240.61,12.40250343]
[1731949931460,0.25098,240.66,240.63,12.40250343]
[1731949931664,0.25098,240.66,240.61,12.40250343]
[1731949931860,13.22568,240.66,240.61,12.40250343]
[1731949932068,0.25098,240.64,240.61,12.40250343]
[1731949932239,0.25098,240.64,240.63,12.40250343]
[1731949933959,23.776884,240.65,240.63,12.40250343]
[1731949934466,0.25098,240.66,240.63,12.40250343]
[1731949934673,0.25098,240.66,240.65,12.40250343]
[1731949937244,23.776884,240.67,240.65,12.40250343]
[1731949937649,45.2103,240.72,240.65,12.40250343]
[1731949937650,49.3645,240.72,240.65,12.40250343]
[1731949937849,49.95817462,240.72,240.71,12.40250343]
[1731949938749,44.027864,240.71,240.51,5.68591658]
[1731949939067,44.027864,240.71,240.7,12.40250343]
[1731949939469,44.027864,240.71,240.7,24.80500686]
[1731949939770,24.027864,240.71,240.7,24.80500686]
[1731949940156,4.1537,240.75,240.7,24.80500686]
[1731949940472,0.09367462,240.74,240.73,12.40250343]
[1731949941181,4.1537,240.75,240.73,12.40250343]
[1731949941869,0.5,240.78,240.73,12.40250343]
[1731949942065,8.3071,240.77,240.76,12.40250343]
[1731949942381,4.24707462,240.77,240.76,12.40250343]
[1731949942561,48.27493862,240.77,240.76,12.40250343]
[1731949942760,23.87055862,240.77,240.76,12.40250343]
[1731949942960,4.1524,240.83,240.76,12.40250343]
[1731949943261,4.24607462,240.83,240.82,12.40250343]
[1731949943456,34.24607462,240.83,240.82,12.40250343]
[1731949944073,45.027864,240.77,240.76,12.40250343]
[1731949944264,0.25098,240.74,240.71,12.40250343]
[1731949944473,24.527864,240.72,240.69,12.40250343]
[1731949944867,0.5,240.68,240.51,12.4813]
[1731949945058,23.776884,240.66,240.65,12.40250343]
[1731949945376,44.027864,240.66,240.65,12.40250343]
[1731949945558,20.12549,240.65,240.63,12.40250343]
[1731949945759,48.183364,240.64,240.63,12.40250343]
[1731949946864,0.25098,240.63,240.51,12.4813]
[1731949947058,0.25098,240.63,240.62,12.40250343]
[1731949947267,44.027864,240.63,240.62,12.40250343]
[1731949947567,0.25098,240.61,240.6,12.40250343]
[1731949947970,28.183964,240.61,240.6,12.40250343]
[1731949948283,24.027864,240.61,240.6,12.40250343]
[1731949948572,23.902374,240.61,240.6,12.40250343]
[1731949949271,24.027864,240.61,240.6,12.40250343]
[1731949950559,23.776884,240.61,240.6,12.40250343]
[1731949950963,0.12549,240.67,240.6,12.40250343]
[1731949951172,4.1546,240.7,240.65,12.40250343]
[1731949951577,0.09367462,240.69,240.65,12.40250343]
[1731949952563,0.25098,240.67,240.65,12.40250343]
[1731949952780,24.027864,240.67,240.65,12.40250343]
[1731949953663,0.12549,240.67,240.66,12.40250343]
[1731949953862,1.0,240.8,240.66,12.40250343]
[1731949954062,1.0,240.77,240.72,12.40250343]
[1731949954385,0.09367462,240.76,240.7,12.40250343]
[1731949955066,24.027864,240.74,240.7,12.40250343]
[1731949955388,0.12549,240.74,240.7,12.40250343]
[1731949955959,0.12549,240.74,240.62,20.0]
[1731949955960,0.09367462,240.73,240.62,20.0]
[1731949956166,0.09367462,240.73,240.66,12.40250343]
[1731949956671,0.12549,240.71,240.64,12.40250343]
[1731949956864,0.12549,240.71,240.61,7.27266926]
[1731949956865,12.40250343,240.66,240.58,12.40250343]
[1731949957066,24.027864,240.63,240.58,12.40250343]
[1731949957887,0.25098,240.63,240.58,12.40250343]
[1731949958073,0.25098,240.64,240.58,12.40250343]
[1731949960688,0.25098,240.64,240.59,12.40250343]
[1731949962465,0.25098,240.65,240.59,12.40250343]
[1731949962671,0.25098,240.65,240.56,12.40250343]
[1731949962672,0.25098,240.63,240.56,12.40250343]
[1731949963986,0.25098,240.63,240.58,12.40250343]
[1731949964170,0.25098,240.63,240.6,12.40250343]
[1731949965178,32.8239,240.69,240.62,12.40250343]
[1731949965364,158.4,240.7,240.65,12.40250343]
[1731949965568,0.09367462,240.71,240.65,12.40250343]
[1731949965787,12.40250343,240.74,240.65,12.09900343]
[1731949965986,16.55640343,240.74,240.67,12.40250343]
[1731949966196,30.0,240.68,240.67,12.40250343]
[1731949966375,0.09367462,240.73,240.67,12.40250343]
[1731949966578,12.40250343,240.72,240.65,12.40250343]
[1731949967178,24.027864,240.71,240.65,12.40250343]
[1731949970777,28.182264,240.71,240.65,12.40250343]
[1731949971205,12.40250343,240.68,240.58,12.40250343]
[1731949971405,12.40250343,240.66,240.58,12.40250343]
[1731949971576,24.027864,240.65,240.58,12.40250343]
[1731949978180,12.40250343,240.68,240.6,12.40250343]
[1731949978377,170.51225839,240.72,240.63,7.89632458]
[1731949978583,12.11225839,240.72,240.63,7.89632458]
[1731949979009,7.95805839,240.7,240.62,7.95805839]
[1731949979399,12.11255839,240.7,240.62,7.95805839]
[1731949979797,24.027864,240.69,240.62,7.95805839]
[1731949980493,0.25098,240.69,240.62,7.95805839]
[1731949980883,8.20903839,240.69,240.6,7.95805839]
[1731949981084,8.20903839,240.69,240.59,20.0]
[1731949981085,0.25098,240.66,240.59,20.0]
[1731949981402,7.95805839,240.65,240.58,7.95805839]
[1731949981612,23.902374,240.64,240.58,7.95805839]
[1731949981907,24.027864,240.66,240.58,7.95805839]
[1731949982120,24.027864,240.66,240.6,7.95805839]
[1731949982279,0.25098,240.66,240.6,12.43566691]
[1731949984688,0.25098,240.66,240.62,12.43566691]
[1731949985088,36.46353091,240.68,240.6,12.43566691]
[1731949989800,0.25098,240.65,240.58,12.43566691]
[1731949996901,23.776884,240.68,240.62,12.43566691]
[1731949997213,24.027864,240.69,240.62,12.43566691]
[1731949997986,24.027864,240.69,240.6,12.43566691]
[1731949998291,31.9013,240.75,240.64,12.43566691]
[1731949998486,31.9013,240.75,240.66,12.43566691]
[1731949998793,12.43566691,240.76,240.68,12.43566691]
[1731949999190,45.5924,240.8,240.6,12.43566691]
[1731949999191,45.30406691,240.8,240.72,12.43566691]
[1731949999420,12.43566691,240.8,240.72,12.43566691]
[1731949999908,0.09367462,240.79,240.72,12.43566691]
[1731950000310,12.43566691,240.8,240.72,12.43566691]
[1731950000516,0.09367462,240.79,240.72,12.43566691]
[1731950000815,0.12549,240.78,240.72,12.43566691]
[1731950001212,12.68664691,240.78,240.7,12.43566691]
[1731950001705,12.68664691,240.78,240.72,12.43566691]
[1731950002504,0.25098,240.78,240.71,7.95173895]
[1731950003410,0.12549,240.78,240.71,7.95173895]
[1731950003619,7.95173895,240.77,240.67,20.0]
[1731950003916,24.027864,240.76,240.68,7.95173895]
[1731950004606,7.95173895,240.75,240.66,38.15343895]
[1731950005414,23.776884,240.75,240.69,7.95173895]
[1731950005996,31.72862295,240.75,240.68,7.95173895]
[1731950006915,0.12549,240.74,240.68,7.95173895]
[1731950007114,0.25098,240.74,240.67,7.95173895]
[1731950007616,0.25098,240.75,240.69,7.95173895]
[1731950008516,0.25098,240.75,240.7,7.95173895]
[1731950008717,8.20271895,240.76,240.68,7.95173895]
[1731950008905,23.776884,240.75,240.68,7.95173895]
[1731950009102,24.027864,240.71,240.64,7.95173895]
[1731950011527,7.95173895,240.7,240.62,7.95173895]
[1731950012122,24.027864,240.71,240.64,7.95173895]
[1731950012804,7.95173895,240.7,240.62,7.95173895]
[1731950013019,24.027864,240.67,240.6,7.95173895]
[1731950013205,24.027864,240.65,240.54,30.7]
[1731950013405,24.027864,240.65,240.58,7.95173895]
[1731950014724,24.027864,240.65,240.6,7.95173895]
[1731950014932,23.776884,240.66,240.61,7.95173895]
[1731950015223,0.25098,240.67,240.61,7.95173895]
[1731950019219,0.12549,240.71,240.64,7.95173895]
[1731950019405,7.95173895,240.74,240.66,7.95173895]
[1731950019607,52.17163895,240.75,240.67,7.95173895]
[1731950019831,39.37293895,240.75,240.67,7.95173895]
[1731950020631,0.09367462,240.74,240.67,7.95173895]
[1731950020938,7.95173895,240.71,240.56,0.5]
[1731950021112,7.95173895,240.71,240.64,7.95173895]
[1731950022010,7.95173895,240.69,240.62,7.95173895]
[1731950022208,24.027864,240.68,240.6,7.95173895]
[1731950022508,7.95173895,240.67,240.6,7.95173895]
[1731950022902,24.027864,240.66,240.6,7.95173895]
[1731950023315,7.95173895,240.63,240.54,30.7]
[1731950023513,24.027864,240.62,240.55,7.95173895]
[1731950024216,24.027864,240.6,240.53,7.95173895]
[1731950025131,24.027864,240.6,240.55,7.95173895]
[1731950025300,32.9034,240.64,240.57,7.95173895]
[1731950025505,0.25098,240.62,240.57,7.95173895]
[1731950025704,0.25098,240.68,240.6,7.95173895]
[1731950025931,7.95173895,240.68,240.6,7.95173895]
[1731950026310,45.7799,240.7,240.61,12.43385279]
[1731950026311,12.43385279,240.67,240.61,12.43385279]
[1731950026625,0.09367462,240.66,240.59,12.43385279]
[1731950027222,0.09367462,240.66,240.62,12.43385279]
[1731950027534,0.25098,240.65,240.6,12.43385279]
[1731950027904,0.25098,240.65,240.58,12.43385279]
[1731950028408,0.34465462,240.66,240.6,12.43385279]
[1731950028827,0.09367462,240.66,240.6,12.43385279]
[1731950029632,12.43385279,240.7,240.63,12.43385279]
[1731950029814,0.25098,240.69,240.61,12.43385279]
[1731950030123,0.09367462,240.68,240.61,12.43385279]
[1731950030326,12.43385279,240.66,240.6,20.0]
[1731950030525,0.25098,240.65,240.6,20.0]
[1731950030917,24.027864,240.65,240.59,12.43385279]
[1731950031515,0.25098,240.65,240.59,12.43385279]
[1731950032229,0.25098,240.65,240.57,12.43385279]
[1731950032633,12.43385279,240.64,240.57,12.43385279]
[1731950032831,23.776884,240.66,240.48,43.28125279]
[1731950032832,24.027864,240.61,240.53,12.43385279]
[1731950033335,12.43385279,240.62,240.55,12.43385279]
[1731950034624,24.027864,240.63,240.59,12.43385279]
[1731950034831,23.776884,240.63,240.57,12.43385279]
[1731950035215,12.43385279,240.62,240.55,12.43385279]
[1731950036127,23.776884,240.63,240.55,12.43385279]
[1731950036325,32.0866,240.66,240.59,12.43385279]
[1731950036631,24.027864,240.65,240.59,12.43385279]
[1731950036828,0.25098,240.66,240.61,12.43385279]
[1731950037217,23.776884,240.67,240.61,12.43385279]
[1731950037414,0.09367462,240.68,240.61,12.43385279]
[1731950038135,12.43385279,240.7,240.61,12.43385279]
[1731950038351,12.43385279,240.7,240.63,12.43385279]
[1731950038512,0.09367462,240.69,240.63,12.43385279]
[1731950039031,0.09367462,240.69,240.61,12.43385279]
[1731950039230,24.12153862,240.69,240.61,12.43385279]
[1731950039638,24.12153862,240.69,240.63,12.43385279]
[1731950039948,24.12153862,240.69,240.61,12.43385279]
[1731950040741,12.43385279,240.68,240.59,12.43385279]
[1731950041050,24.12153862,240.69,240.61,12.43385279]
[1731950041448,12.43385279,240.68,240.59,12.43385279]
[1731950041647,12.43385279,240.66,240.59,12.43385279]
[1731950042027,12.43385279,240.68,240.59,12.43385279]
[1731950042329,24.027864,240.67,240.59,12.43385279]
[1731950042744,12.43385279,240.66,240.59,12.43385279]
[1731950043456,12.43385279,240.64,240.56,20.0]
[1731950044131,12.43385279,240.64,240.57,12.43385279]
[1731950044745,12.43385279,240.66,240.57,12.43385279]
[1731950045641,24.027864,240.65,240.57,12.43385279]
[1731950045839,12.43385279,240.64,240.57,12.43385279]
[1731950046052,12.43385279,240.64,240.55,12.43385279]
[1731950046258,31.98934662,240.63,240.56,20.0]
[1731950046469,0.25098,240.63,240.57,7.96148262]
[1731950047248,0.09367462,240.69,240.61,7.96148262]
[1731950047454,24.027864,240.67,240.61,7.96148262]
[1731950047655,31.98934662,240.67,240.59,7.96148262]
[1731950048659,24.027864,240.67,240.59,7.96148262]
[1731950049648,32.3231,240.77,240.63,7.96148262]
[1731950049943,7.96148262,240.73,240.65,7.96148262]
[1731950050889,7.96148262,240.71,240.63,7.96148262]
[1731950051066,24.12153862,240.7,240.63,7.96148262]
[1731950052561,24.12153862,240.7,240.64,20.0]
[1731950053045,7.96148262,240.69,240.61,7.96148262]
[1731950053363,7.96148262,240.69,240.62,20.0]
[1731950053567,24.12153862,240.7,240.62,20.0]
[1731950053937,7.96148262,240.69,240.62,20.0]
[1731950054249,31.8396,240.83,240.68,20.0]
[1731950054435,31.8396,240.83,240.75,20.0]
[1731950054635,7.96148262,240.82,240.75,20.0]
[1731950056141,4.1514,240.88,240.76,43.9476]
[1731950056462,6.43965169,241.17,240.96,20.5]
[1731950056639,38.63791014,241.27,240.96,20.5]
[1731950056640,6.43965169,241.29,241.16,12.40322191]
[1731950056972,12.40322191,241.28,241.17,20.0]
[1731950057173,12.40322191,241.28,241.19,20.0]
[1731950057334,12.40322191,241.27,241.19,19.1337]
[1731950057539,0.5,241.4,241.19,19.1337]
[1731950057540,12.40322191,241.29,241.19,19.1337]
[1731950057759,12.40322191,241.29,241.2,12.40322191]
[1731950058063,158.4,241.4,241.16,17.58043617]
[1731950058064,12.40322191,241.31,241.21,12.40322191]
[1731950058434,0.09367462,241.41,241.22,19.7867547]
[1731950058640,19.7867547,241.27,241.18,20.02508146]
[1731950058834,0.09367462,241.41,241.17,20.2867547]
[1731950059147,19.7867547,241.25,241.17,20.2867547]
[1731950059458,19.7867547,241.27,241.18,20.0]
[1731950059647,19.7867547,241.3,241.2,20.0]
[1731950059958,19.7867547,241.28,241.2,20.0]
[1731950060178,0.5,241.13,240.94,16.591255]
[1731950060337,19.7867547,241.02,240.96,30.0]
[1731950060536,20.2867547,241.21,240.96,30.5]
[1731950060537,19.7867547,241.06,240.96,30.5]
[1731950060758,19.7867547,241.21,240.96,30.5]
[1731950060759,19.7867547,241.08,240.97,19.7867547]
[1731950061139,19.7867547,241.06,240.96,30.0]
[1731950061346,19.7867547,241.04,240.96,30.0]
[1731950061662,19.7867547,241.04,240.93,19.7867547]
[1731950061848,19.7867547,241.04,240.96,0.5]
[1731950062054,19.7867547,241.06,240.97,19.7867547]
[1731950062265,19.7867547,241.09,241.0,19.7867547]
[1731950063355,19.7867547,241.09,241.01,20.0]
[1731950063841,19.7867547,241.05,240.98,19.7867547]
[1731950064159,19.7867547,241.03,240.95,19.7867547]
[1731950064557,19.7867547,241.05,240.97,19.7867547]
[1731950065343,19.7867547,241.05,240.98,20.0]
[1731950067257,19.7867547,241.03,240.95,19.7867547]
[1731950068352,19.7867547,241.04,240.97,19.7867547]
[1731950068556,23.87055862,241.02,240.81,13.1764]
[1731950068757,19.7867547,240.92,240.84,19.7867547]
[1731950068958,0.09367462,241.02,240.81,13.1764]
[1731950069166,0.12549,241.0,240.81,13.1764]
[1731950069372,19.7867547,240.95,240.87,19.7867547]
[1731950069559,19.7867547,240.96,240.88,19.7867547]
[1731950069769,19.7867547,240.95,240.87,19.7867547]
[1731950070265,19.7867547,240.94,240.87,19.7867547]
[1731950070844,19.7867547,240.92,240.86,20.0]
[1731950071048,19.7867547,240.91,240.83,19.7867547]
[1731950072379,19.7867547,240.91,240.84,20.0]
[1731950072677,19.7867547,240.9,240.84,20.0]
[1731950072851,19.7867547,240.91,240.84,20.0]
[1731950073051,19.7867547,240.91,240.84,19.7867547]
[1731950073860,19.7867547,240.91,240.83,19.7867547]
[1731950074174,19.7867547,240.91,240.84,20.0]
[1731950074546,19.7867547,240.9,240.83,20.0]
[1731950074752,19.7867547,240.86,240.8,20.0]
[1731950074952,19.7867547,240.86,240.79,19.7867547]
[1731950075553,19.7867547,240.86,240.72,22.12576681]
[1731950075554,19.7867547,240.86,240.78,19.7867547]
[1731950075871,19.7867547,240.87,240.79,19.7867547]
[1731950076171,19.7867547,240.88,240.8,19.7867547]
[1731950076472,19.7867547,240.89,240.82,19.7867547]
[1731950076644,19.7867547,240.89,240.81,19.7867547]
[1731950076850,19.7867547,240.96,240.83,19.7867547]
[1731950076851,19.7867547,240.9,240.83,19.7867547]
[1731950077045,158.4,240.98,240.84,19.7867547]
[1731950077046,24.027864,240.97,240.84,19.7867547]
[1731950077253,19.7867547,240.92,240.85,19.7867547]
[1731950077686,19.7867547,240.88,240.81,19.7867547]
[1731950077972,19.7867547,240.89,240.82,19.7867547]
[1731950078155,19.7867547,240.91,240.83,19.7867547]
[1731950078366,0.25098,240.9,240.85,19.7867547]
[1731950078577,0.25098,240.9,240.84,19.7867547]
[1731950081775,0.25098,240.9,240.83,19.7867547]
[1731950081969,0.25098,240.9,240.84,19.7867547]
[1731950084879,19.7867547,240.93,240.84,19.7867547]
[1731950085090,19.7867547,240.93,240.86,19.7867547]
[1731950085382,0.25098,240.92,240.86,19.7867547]
[1731950087381,20.0377347,240.92,240.86,19.7867547]
[1731950088867,19.7867547,240.94,240.87,19.7867547]
[1731950089065,0.25098,240.93,240.87,19.7867547]
[1731950090362,19.7867547,240.98,240.91,19.7867547]
[1731950090562,19.7867547,240.95,240.88,19.7867547]
[1731950090762,19.7867547,240.94,240.87,19.7867547]
[1731950091284,0.09367462,240.99,240.8,1.0]
[1731950091285,19.7867547,240.95,240.88,19.7867547]
[1731950091462,19.7867547,240.97,240.83,2.35764733]
[1731950091661,0.09367462,240.99,240.85,20.0]
[1731950091662,19.88042932,240.99,240.85,20.0]
[1731950091887,19.88042932,240.99,240.91,19.7867547]
[1731950092184,19.7867547,240.98,240.9,19.7867547]
[1731950092375,19.88042932,240.99,240.85,20.0]
[1731950092579,19.88042932,240.99,240.91,19.7867547]
[1731950092892,19.88042932,240.99,240.92,19.7867547]
[1731950093074,0.09367462,240.99,240.95,19.7867547]
[1731950093279,30.0,240.96,240.95,19.7867547]
[1731950093596,0.09367462,240.99,240.93,19.7867547]
[1731950093763,19.7867547,240.98,240.89,19.7867547]
[1731950093969,19.7867547,240.96,240.89,19.7867547]
[1731950094180,19.7867547,240.98,240.85,20.0]
[1731950094404,0.09367462,240.99,240.91,19.7867547]
[1731950095391,0.09367462,240.99,240.88,19.7867547]
[1731950095392,19.7867547,240.96,240.88,19.7867547]
[1731950095926,19.88042932,240.99,240.91,19.7867547]
[1731950096295,0.09367462,240.99,240.93,19.7867547]
[1731950096967,0.09367462,240.99,240.96,19.7867547]
[1731950097190,0.09367462,240.99,240.95,19.7867547]
[1731950097394,0.09367462,240.99,240.96,19.7867547]
[1731950097770,0.09367462,240.99,240.95,19.7867547]
[1731950098169,0.09367462,240.99,240.97,19.7867547]
[1731950099791,0.09367462,240.99,240.91,0.5]
[1731950099792,0.09367462,240.99,240.95,19.7867547]
[1731950099992,0.09367462,240.99,240.96,19.7867547]
[1731950100203,0.09367462,240.99,240.94,19.7867547]
[1731950100371,19.88042932,240.99,240.93,20.0]
[1731950100572,0.09367462,240.99,240.93,20.0]
[1731950100871,0.09367462,240.99,240.94,19.7867547]
[1731950101085,0.09367462,240.99,240.95,19.7867547]
[1731950101277,0.09367462,240.99,240.96,19.7867547]
[1731950101484,0.09367462,240.99,240.89,20.0]
[1731950101485,0.09367462,240.99,240.97,19.7867547]
[1731950101679,0.09367462,240.99,240.98,19.7867547]
[1731950102077,0.09367462,240.99,240.97,19.7867547]
[1731950102585,0.09367462,240.99,240.96,12.39750743]
[1731950102798,0.09367462,240.99,240.97,12.39750743]
[1731950103175,0.09367462,240.99,240.96,12.39750743]
[1731950103477,0.09367462,240.99,240.88,15.35050952]
[1731950103478,0.09367462,240.99,240.97,12.39750743]
[1731950103692,0.09367462,240.99,240.98,12.39750743]
[1731950106499,0.09367462,240.99,240.98,32.39750743]
[1731950109174,30.0434,241.14,240.96,12.39750743]
[1731950109175,12.39750743,241.12,241.04,12.39750743]
[1731950109382,30.0,241.05,241.04,12.39750743]
[1731950109875,12.39750743,241.08,241.01,12.39750743]
[1731950110074,12.39750743,241.05,240.97,12.39750743]
[1731950110273,12.39750743,241.06,240.98,12.39750743]
[1731950110602,12.39750743,241.03,240.96,12.39750743]
[1731950110804,30.0,241.04,240.88,13.53]
[1731950110977,30.0,241.04,240.97,12.39750743]
[1731950111701,30.0,241.02,240.98,12.39750743]
[1731950111876,30.0,241.02,240.99,12.39750743]
[1731950113182,30.0,241.02,241.0,12.39750743]
[1731950116206,0.34465462,241.06,241.0,12.39750743]
[1731950116606,0.12549,241.06,241.0,12.39750743]
[1731950117131,24.12153862,241.06,240.98,12.39750743]
[1731950117930,24.12153862,241.06,241.0,12.39750743]
[1731950119148,30.0,241.01,240.96,12.39750743]
[1731950119335,0.34465462,241.0,240.94,12.39750743]
[1731950119515,0.25098,240.98,240.92,12.39750743]
[1731950119826,0.25098,240.98,240.94,12.39750743]
[1731950120035,0.25098,240.98,240.84,12.39750743]
[1731950120036,30.25098,240.98,240.93,12.39750743]
[1731950120207,30.25098,240.98,240.92,12.39750743]
[1731950120399,30.25098,240.98,240.93,12.39750743]
[1731950120822,23.87055862,240.97,240.92,12.39750743]
[1731950121015,30.25098,240.96,240.91,12.39750743]
[1731950121325,30.25098,240.96,240.92,12.39750743]
[1731950121691,0.09367462,240.95,240.9,12.39750743]
[1731950122010,56.42537143,240.91,240.81,12.39750743]
[1731950122209,56.42537143,240.91,240.78,2.44125922]
[1731950122210,24.027864,240.88,240.84,12.39750743]
[1731950122406,24.027864,240.88,240.83,12.39750743]
[1731950122603,0.25098,240.88,240.83,12.39750743]
[1731950122794,0.25098,240.88,240.82,12.39750743]
[1731950122998,42.64848743,240.88,240.8,12.39750743]
[1731950123589,12.39750743,240.85,240.78,12.39750743]
[1731950123795,12.39750743,240.84,240.76,12.39750743]
[1731950123994,30.0,240.83,240.78,12.39750743]
[1731950124509,0.25098,240.82,240.75,12.39750743]
[1731950124701,12.39750743,240.77,240.65,32.9566]
[1731950124902,12.39750743,240.77,240.63,12.038]
[1731950124903,4.40358,240.82,240.63,12.038]
[1731950125205,12.39750743,240.72,240.58,32.9566]
[1731950125402,12.39750743,240.71,240.64,12.39750743]
[1731950126596,12.39750743,240.72,240.65,12.39750743]
[1731950126902,24.027864,240.71,240.65,12.39750743]
[1731950127403,24.027864,240.71,240.66,12.39750743]
[1731950127610,23.902374,240.74,240.67,12.39750743]
[1731950127813,36.42537143,240.74,240.66,12.39750743]
[1731950127998,12.39750743,240.73,240.65,12.39750743]
[1731950128316,43.6673996,240.7,240.62,19.8905156]
[1731950128609,43.6673996,240.7,240.63,20.0]
[1731950129284,43.6673996,240.7,240.63,19.8905156]
[1731950129816,23.776884,240.7,240.64,19.8905156]
[1731950129984,23.776884,240.72,240.65,19.8905156]
[1731950130181,0.25098,240.71,240.65,19.8905156]
[1731950130407,0.25098,240.71,240.64,19.8905156]
[1731950130914,20.1414956,240.71,240.63,19.8905156]
[1731950131114,23.776884,240.7,240.63,19.8905156]
[1731950133109,30.0,240.69,240.63,19.8905156]
[1731950133814,30.0,240.69,240.61,19.8905156]
[1731950133815,23.776884,240.68,240.61,19.8905156]
[1731950134123,30.0,240.67,240.61,19.8905156]
[1731950134413,30.0,240.67,240.63,19.8905156]
[1731950134799,30.0,240.67,240.61,19.8905156]
[1731950135595,30.0,240.67,240.63,19.8905156]
[1731950135797,30.0,240.67,240.61,19.8905156]
[1731950136105,30.0,240.67,240.63,19.8905156]
[1731950137791,30.0,240.67,240.58,20.0]
[1731950137792,30.0,240.67,240.65,19.8905156]
[1731950138096,19.8905156,240.75,240.65,19.8905156]
[1731950138500,19.8905156,240.73,240.65,19.8905156]
[1731950139413,23.902374,240.72,240.65,19.8905156]
[1731950140191,19.8905156,240.73,240.67,19.8905156]
[1731950140397,19.8905156,240.75,240.68,19.8905156]
[1731950140602,19.8905156,240.75,240.66,19.8905156]
[1731950140803,0.12549,240.72,240.64,19.8905156]
[1731950141112,19.8905156,240.75,240.66,19.8905156]
[1731950141492,19.8905156,240.75,240.67,19.8905156]
[1731950142612,23.776884,240.74,240.67,19.8905156]
[1731950143522,23.776884,240.72,240.65,19.8905156]
[1731950143704,19.8905156,240.71,240.64,19.8905156]
[1731950144104,19.8905156,240.71,240.65,20.0]
[1731950144999,19.8905156,240.71,240.64,19.8905156]
[1731950145795,19.8905156,240.69,240.62,19.8905156]
[1731950146103,23.776884,240.66,240.59,19.8905156]
[1731950146504,30.0,240.68,240.61,19.8905156]
[1731950147911,30.0,240.68,240.6,19.8905156]
[1731950148212,30.0,240.68,240.67,19.8905156]
[1731950148894,19.8905156,240.73,240.67,19.8905156]
[1731950149692,30.9779,240.77,240.52,30.1726]
[1731950149693,19.8905156,240.68,240.52,30.1726]
[1731950149892,19.8905156,240.64,240.55,19.8905156]
[1731950150105,23.776884,240.63,240.55,19.8905156]
[1731950150305,12.44058804,240.62,240.54,12.44058804]
[1731950150898,23.776884,240.63,240.56,12.44058804]
[1731950151112,23.776884,240.61,240.53,12.44058804]
[1731950151295,12.44058804,240.6,240.53,12.44058804]
[1731950151612,23.776884,240.59,240.51,12.44058804]
[1731950151999,23.776884,240.59,240.46,12.8922]
[1731950152200,23.776884,240.59,240.46,15.26721731]
[1731950152396,0.12549,240.62,240.47,20.0]
[1731950152603,30.0,240.58,240.47,20.0]
[1731950152798,29.8002,240.58,240.47,20.0]
[1731950154509,24.027864,240.66,240.47,20.0]
[1731950154710,24.027864,240.66,240.49,20.0]
[1731950155224,12.9365,240.67,240.51,20.0]
[1731950155522,12.9365,240.67,240.52,0.12549]
[1731950155698,0.09367462,240.7,240.52,0.12549]
[1731950156322,4.24827462,240.7,240.52,0.12549]
[1731950156505,24.027864,240.69,240.52,0.12549]
[1731950157102,12.875,240.72,240.55,20.09367462]
[1731950157305,12.875,240.72,240.56,0.12549]
[1731950158720,4.1537,240.75,240.56,0.12549]
[1731950158920,24.027864,240.74,240.56,0.12549]
[1731950159831,0.12549,240.74,240.57,0.09367462]
[1731950160125,0.25098,240.75,240.59,20.0]
[1731950160916,23.7378,240.84,240.6,0.34465462]
[1731950161117,12.8575,240.84,240.64,0.12549]
[1731950162207,17.0097,240.84,240.64,0.12549]
[1731950162408,4.1514,240.89,240.67,24.12153862]
[1731950162623,16.2933,240.91,240.7,20.12549]
[1731950162927,12.1423,240.91,240.72,44.12153862]
[1731950163115,0.09367462,240.91,240.72,20.0]
[1731950163460,0.5,240.91,240.72,20.0]
[1731950163612,32.5182,240.92,240.72,20.0]
[1731950163806,1.0,240.89,240.72,20.0]